[Event "January 9 Early 2024"]
[Site "https://www.chess.com"]
[Date "2024.01.11"]
[Round "6"]
[White "Santeramo, Alessia Carmen"]
[Black "Rangel, Daniel"]
[Result "0-1"]
[Board "148"]
[TimeControl "180+1"]
[WhiteFideId "850810"]
[BlackFideId "2124475"]
[WhiteElo "2317"]
[BlackElo "2498"]
[WhiteTeam "ITA"]
[BlackTeam "BRA"]
[WhiteClock "0:00:02"]
[BlackClock "0:00:42"]

1. e4 {[%clk 0:03:00]}  c5 {[%clk 0:02:59]} 2. Nf3 {[%clk 0:03:01]}  d6 {[%clk 0:03:00]} 3. Bb5+ {[%clk 0:03:00]}  Bd7 {[%clk 0:02:59]} 4. Bxd7+ {[%clk 0:03:00]}  Nxd7 {[%clk 0:03:00]} 5. O-O {[%clk 0:03:01]}  e6 {[%clk 0:03:01]} 6. Re1 {[%clk 0:03:01]}  Ngf6 {[%clk 0:03:00]} 7. c3 {[%clk 0:03:02]}  Be7 {[%clk 0:03:00]} 8. d4 {[%clk 0:03:03]}  cxd4 {[%clk 0:03:01]} 9. cxd4 {[%clk 0:03:04]}  d5 {[%clk 0:03:02]} 10. e5 {[%clk 0:03:04]}  Ne4 {[%clk 0:03:02]} 11. Be3 {[%clk 0:02:47]}  O-O {[%clk 0:03:00]} 12. Rf1 {[%clk 0:02:47]}  Qb6 {[%clk 0:02:57]} 13. Qe2 {[%clk 0:02:32]}  Rac8 {[%clk 0:02:51]} 14. Ne1 {[%clk 0:02:30]}  f6 {[%clk 0:02:36]} 15. f3 {[%clk 0:02:24]}  Ng5 {[%clk 0:02:35]} 16. exf6 {[%clk 0:01:47]}  Bxf6 {[%clk 0:02:31]} 17. Qd2 {[%clk 0:01:47]}  Nf7 {[%clk 0:02:28]} 18. Nc3 {[%clk 0:01:47]}  Nd6 {[%clk 0:02:26]} 19. b3 {[%clk 0:01:44]}  Nf5 {[%clk 0:02:16]} 20. Nc2 {[%clk 0:01:34]}  Nxe3 {[%clk 0:02:10]} 21. Qxe3 {[%clk 0:01:35]}  Rc6 {[%clk 0:02:08]} 22. Rfd1 {[%clk 0:01:03]}  Qc7 {[%clk 0:02:04]} 23. Nb5 {[%clk 0:00:43]}  Qa5 {[%clk 0:01:54]} 24. Nba3 {[%clk 0:00:36]}  Rfc8 {[%clk 0:01:53]} 25. Rd2 {[%clk 0:00:33]}  Qc3 {[%clk 0:01:33]} 26. Rad1 {[%clk 0:00:22]}  a6 {[%clk 0:01:28]} 27. Rd3 {[%clk 0:00:20]}  Qa5 {[%clk 0:01:26]} 28. b4 {[%clk 0:00:17]}  Qa4 {[%clk 0:01:23]} 29. Rb3 {[%clk 0:00:13]}  Nf8 {[%clk 0:01:23]} 30. Rdd3 {[%clk 0:00:11]}  Rxc2 {[%clk 0:01:21]} 31. Nxc2 {[%clk 0:00:07]}  Rxc2 {[%clk 0:01:22]} 32. a3 {[%clk 0:00:05]}  Qc6 {[%clk 0:01:19]} 33. Rdc3 {[%clk 0:00:04]}  Rxc3 {[%clk 0:01:19]} 34. Rxc3 {[%clk 0:00:05]}  Qb6 {[%clk 0:01:19]} 35. Rc5 {[%clk 0:00:04]}  h6 {[%clk 0:01:12]} 36. g4 {[%clk 0:00:03]}  Qd6 {[%clk 0:01:11]} 37. Kg2 {[%clk 0:00:03]}  Qe7 {[%clk 0:01:02]} 38. f4 {[%clk 0:00:04]}  Qd7 {[%clk 0:00:56]} 39. Kf3 {[%clk 0:00:04]}  Be7 {[%clk 0:00:56]} 40. Rc2 {[%clk 0:00:03]}  Bd6 {[%clk 0:00:57]} 41. Re2 {[%clk 0:00:03]}  Qf7 {[%clk 0:00:55]} 42. h3 {[%clk 0:00:03]}  Kh7 {[%clk 0:00:53]} 43. Qd3+ {[%clk 0:00:03]}  Ng6 {[%clk 0:00:51]} 44. Qe3 {[%clk 0:00:04]}  Nxf4 {[%clk 0:00:47]} 45. Re1 {[%clk 0:00:04]}  Nd3+ {[%clk 0:00:45]} 46. Ke2 {[%clk 0:00:03]}  Nxe1 {[%clk 0:00:45]} 47. Kxe1 {[%clk 0:00:03]}  Qg6 {[%clk 0:00:44]} 48. Kd2 {[%clk 0:00:02]}  Qe4 {[%clk 0:00:42]} 49. Qf2 {[%clk 0:00:02]}  Bf4+ {[%clk 0:00:42]} 0-1

[Event "January 9 Early 2024"]
[Site "https://www.chess.com"]
[Date "2024.01.11"]
[Round "6"]
[White "Dominguez Perez, Leinier"]
[Black "Yeremyan, Alen"]
[Result "1-0"]
[Board "149"]
[TimeControl "180+1"]
[WhiteFideId "3503240"]
[BlackFideId "13308998"]
[WhiteElo "2971"]
[BlackElo "2772"]
[WhiteTeam "USA"]
[BlackTeam "ARM"]
[WhiteClock "0:00:07"]
[BlackClock "0:00:08"]

1. e4 {[%clk 0:03:00]}  c5 {[%clk 0:02:58]} 2. Nf3 {[%clk 0:03:00]}  Nc6 {[%clk 0:02:56]} 3. d4 {[%clk 0:03:01]}  cxd4 {[%clk 0:02:57]} 4. Nxd4 {[%clk 0:03:01]}  Nf6 {[%clk 0:02:57]} 5. Nc3 {[%clk 0:03:01]}  e5 {[%clk 0:02:58]} 6. Ndb5 {[%clk 0:03:01]}  d6 {[%clk 0:02:57]} 7. Bg5 {[%clk 0:03:02]}  a6 {[%clk 0:02:57]} 8. Na3 {[%clk 0:03:02]}  b5 {[%clk 0:02:58]} 9. Nd5 {[%clk 0:03:03]}  Be7 {[%clk 0:02:58]} 10. Bxf6 {[%clk 0:03:03]}  Bxf6 {[%clk 0:02:59]} 11. c3 {[%clk 0:03:04]}  O-O {[%clk 0:02:59]} 12. Nc2 {[%clk 0:03:04]}  Bg5 {[%clk 0:02:59]} 13. a4 {[%clk 0:03:03]}  bxa4 {[%clk 0:02:59]} 14. Rxa4 {[%clk 0:03:04]}  Rb8 {[%clk 0:03:00]} 15. h4 {[%clk 0:02:53]}  Bh6 {[%clk 0:02:56]} 16. Bxa6 {[%clk 0:02:31]}  Rxb2 {[%clk 0:02:35]} 17. Bxc8 {[%clk 0:02:31]}  Qxc8 {[%clk 0:02:36]} 18. Rc4 {[%clk 0:02:30]}  Qb7 {[%clk 0:02:37]} 19. O-O {[%clk 0:02:28]}  Kh8 {[%clk 0:02:31]} 20. Ncb4 {[%clk 0:02:24]}  Nxb4 {[%clk 0:02:29]} 21. Rxb4 {[%clk 0:02:10]}  Rxb4 {[%clk 0:02:28]} 22. cxb4 {[%clk 0:02:11]}  f5 {[%clk 0:02:25]} 23. Qd3 {[%clk 0:02:11]}  fxe4 {[%clk 0:02:23]} 24. Qxe4 {[%clk 0:02:10]}  Rf4 {[%clk 0:02:20]} 25. Qd3 {[%clk 0:01:12]}  Rd4 {[%clk 0:02:19]} 26. Qf5 {[%clk 0:01:12]}  Qxd5 {[%clk 0:02:14]} 27. Ra1 {[%clk 0:01:04]}  g6 {[%clk 0:01:48]} 28. Qc8+ {[%clk 0:00:39]}  Kg7 {[%clk 0:01:29]} 29. Ra7+ {[%clk 0:00:34]}  Kf6 {[%clk 0:01:29]} 30. Qd8+ {[%clk 0:00:17]}  Kf5 {[%clk 0:01:27]} 31. Qc8+ {[%clk 0:00:18]}  Ke4 {[%clk 0:01:08]} 32. Qc2+ {[%clk 0:00:17]}  Rd3 {[%clk 0:00:58]} 33. Ra3 {[%clk 0:00:16]}  Qb5 {[%clk 0:00:41]} 34. Qe2+ {[%clk 0:00:07]}  Kd4 {[%clk 0:00:41]} 35. Qb2+ {[%clk 0:00:07]}  Kd5 {[%clk 0:00:36]} 36. Ra5 {[%clk 0:00:07]}  Rd1+ {[%clk 0:00:10]} 37. Kh2 {[%clk 0:00:07]}  Qxa5 {[%clk 0:00:09]} 38. bxa5 {[%clk 0:00:08]}  Ke6 {[%clk 0:00:08]} 39. Qb3+ {[%clk 0:00:07]} 1-0

[Event "January 9 Early 2024"]
[Site "https://www.chess.com"]
[Date "2024.01.11"]
[Round "6"]
[White "De Pablo Pena, Miguel Angel"]
[Black "Vargas, Mauricio"]
[Result "1-0"]
[Board "151"]
[TimeControl "180+1"]
[WhiteFideId "2219123"]
[BlackFideId "4404572"]
[WhiteElo "2157"]
[BlackElo "1838"]
[WhiteTeam "ESP"]
[BlackTeam "COL"]
[WhiteClock "0:00:14"]
[BlackClock "0:00:08"]

1. e4 {[%clk 0:03:00]}  d5 {[%clk 0:02:58]} 2. exd5 {[%clk 0:03:00]}  Qxd5 {[%clk 0:02:58]} 3. Nc3 {[%clk 0:03:01]}  Qa5 {[%clk 0:02:57]} 4. d4 {[%clk 0:03:01]}  c6 {[%clk 0:02:56]} 5. Bd2 {[%clk 0:03:02]}  Qc7 {[%clk 0:02:55]} 6. Nf3 {[%clk 0:02:59]}  Nf6 {[%clk 0:02:56]} 7. Bc4 {[%clk 0:02:59]}  Bg4 {[%clk 0:02:56]} 8. h3 {[%clk 0:02:37]}  Bh5 {[%clk 0:02:56]} 9. O-O {[%clk 0:02:35]}  Nbd7 {[%clk 0:02:53]} 10. Re1 {[%clk 0:02:27]}  e6 {[%clk 0:02:53]} 11. Be2 {[%clk 0:02:04]}  Bd6 {[%clk 0:02:51]} 12. Ng5 {[%clk 0:01:53]}  Bg6 {[%clk 0:02:45]} 13. Bf3 {[%clk 0:01:40]}  O-O {[%clk 0:02:44]} 14. Be3 {[%clk 0:01:21]}  h6 {[%clk 0:02:40]} 15. Nge4 {[%clk 0:01:20]}  Nxe4 {[%clk 0:02:39]} 16. Nxe4 {[%clk 0:01:21]}  Be7 {[%clk 0:02:17]} 17. c4 {[%clk 0:01:11]}  Rad8 {[%clk 0:02:16]} 18. Qe2 {[%clk 0:01:07]}  b6 {[%clk 0:02:02]} 19. a3 {[%clk 0:01:07]}  c5 {[%clk 0:02:01]} 20. Ng3 {[%clk 0:00:47]}  cxd4 {[%clk 0:01:55]} 21. Bxd4 {[%clk 0:00:48]}  Nc5 {[%clk 0:01:50]} 22. Rad1 {[%clk 0:00:36]}  Rfe8 {[%clk 0:01:36]} 23. Bh5 {[%clk 0:00:19]}  Bh7 {[%clk 0:01:01]} 24. Qf3 {[%clk 0:00:19]}  f5 {[%clk 0:00:38]} 25. Bxe8 {[%clk 0:00:16]}  Rxe8 {[%clk 0:00:36]} 26. Nh5 {[%clk 0:00:16]}  g6 {[%clk 0:00:33]} 27. Nf6+ {[%clk 0:00:15]}  Bxf6 {[%clk 0:00:29]} 28. Bxf6 {[%clk 0:00:16]}  Kf7 {[%clk 0:00:28]} 29. Bc3 {[%clk 0:00:15]}  e5 {[%clk 0:00:21]} 30. g4 {[%clk 0:00:15]}  e4 {[%clk 0:00:21]} 31. Qe3 {[%clk 0:00:15]}  Nd3 {[%clk 0:00:16]} 32. Qd4 {[%clk 0:00:15]}  Nxe1 {[%clk 0:00:12]} 33. Qg7+ {[%clk 0:00:15]}  Ke6 {[%clk 0:00:10]} 34. Qxc7 {[%clk 0:00:15]}  Nf3+ {[%clk 0:00:10]} 35. Kh1 {[%clk 0:00:14]}  Re7 {[%clk 0:00:09]} 36. Qd6+ {[%clk 0:00:13]}  Kf7 {[%clk 0:00:09]} 37. Qf6+ {[%clk 0:00:14]}  Ke8 {[%clk 0:00:09]} 38. Qh8+ {[%clk 0:00:13]}  Kf7 {[%clk 0:00:08]} 39. Qxh7+ {[%clk 0:00:14]}  Ke6 {[%clk 0:00:08]} 40. Qxg6# {[%clk 0:00:14]} 1-0

[Event "January 9 Early 2024"]
[Site "https://www.chess.com"]
[Date "2024.01.11"]
[Round "6"]
[White "Piesik, Piotr"]
[Black "Sahin, Sarp"]
[Result "1-0"]
[Board "156"]
[TimeControl "180+1"]
[WhiteFideId "1136194"]
[BlackFideId "51605066"]
[WhiteElo "2664"]
[BlackElo "2436"]
[WhiteTeam "CZE"]
[BlackTeam "TUR"]
[WhiteClock "0:00:51"]
[BlackClock "0:00:06"]

1. Nf3 {[%clk 0:03:00]}  Nf6 {[%clk 0:02:58]} 2. g3 {[%clk 0:02:59]}  d5 {[%clk 0:02:56]} 3. Bg2 {[%clk 0:02:59]}  Bf5 {[%clk 0:02:56]} 4. O-O {[%clk 0:03:00]}  e6 {[%clk 0:02:56]} 5. c4 {[%clk 0:03:01]}  h6 {[%clk 0:02:54]} 6. cxd5 {[%clk 0:03:01]}  exd5 {[%clk 0:02:54]} 7. d3 {[%clk 0:03:01]}  c6 {[%clk 0:02:54]} 8. Qb3 {[%clk 0:03:02]}  Qb6 {[%clk 0:02:54]} 9. Qc2 {[%clk 0:03:02]}  Be7 {[%clk 0:02:53]} 10. Nc3 {[%clk 0:03:03]}  O-O {[%clk 0:02:53]} 11. e4 {[%clk 0:03:03]}  dxe4 {[%clk 0:02:52]} 12. dxe4 {[%clk 0:03:04]}  Bh7 {[%clk 0:02:52]} 13. Be3 {[%clk 0:03:04]}  Qc7 {[%clk 0:02:52]} 14. h3 {[%clk 0:03:04]}  Nbd7 {[%clk 0:02:51]} 15. Nd4 {[%clk 0:03:00]}  Rfe8 {[%clk 0:02:50]} 16. f4 {[%clk 0:03:00]}  Nc5 {[%clk 0:02:48]} 17. b4 {[%clk 0:02:53]}  Ne6 {[%clk 0:02:42]} 18. Nxe6 {[%clk 0:02:52]}  fxe6 {[%clk 0:02:42]} 19. Qb3 {[%clk 0:02:53]}  Kh8 {[%clk 0:02:41]} 20. a3 {[%clk 0:02:48]}  Rad8 {[%clk 0:02:39]} 21. Rad1 {[%clk 0:02:47]}  a6 {[%clk 0:02:30]} 22. Bf2 {[%clk 0:02:44]}  Bg8 {[%clk 0:02:23]} 23. e5 {[%clk 0:02:41]}  Nd5 {[%clk 0:02:21]} 24. Ne4 {[%clk 0:02:41]}  a5 {[%clk 0:02:19]} 25. Bc5 {[%clk 0:02:40]}  axb4 {[%clk 0:02:17]} 26. axb4 {[%clk 0:02:38]}  Bh7 {[%clk 0:02:10]} 27. Nd6 {[%clk 0:02:35]}  Rf8 {[%clk 0:02:00]} 28. Ne4 {[%clk 0:02:25]}  b6 {[%clk 0:01:46]} 29. Bxe7 {[%clk 0:02:25]}  Qxe7 {[%clk 0:01:44]} 30. Nd6 {[%clk 0:02:25]}  c5 {[%clk 0:01:42]} 31. bxc5 {[%clk 0:02:23]}  bxc5 {[%clk 0:01:42]} 32. Bxd5 {[%clk 0:02:23]}  exd5 {[%clk 0:01:42]} 33. Qxd5 {[%clk 0:02:19]}  Bg8 {[%clk 0:01:31]} 34. Qxc5 {[%clk 0:02:19]}  Qe6 {[%clk 0:01:30]} 35. Kh2 {[%clk 0:02:17]}  Qa2+ {[%clk 0:01:28]} 36. Rf2 {[%clk 0:02:17]}  Qb3 {[%clk 0:01:28]} 37. Rc1 {[%clk 0:02:12]}  Qd3 {[%clk 0:01:24]} 38. Qc2 {[%clk 0:02:05]}  Qe3 {[%clk 0:01:23]} 39. Re2 {[%clk 0:02:01]}  Qa3 {[%clk 0:01:12]} 40. Qc3 {[%clk 0:01:57]}  Qa6 {[%clk 0:01:09]} 41. Rd2 {[%clk 0:01:54]}  Qb6 {[%clk 0:00:57]} 42. Qc5 {[%clk 0:01:51]}  Qb3 {[%clk 0:00:55]} 43. Qd4 {[%clk 0:01:41]}  Qf3 {[%clk 0:00:45]} 44. Rc3 {[%clk 0:01:37]}  Qf1 {[%clk 0:00:44]} 45. Qd3 {[%clk 0:01:34]}  Qa1 {[%clk 0:00:39]} 46. Rc7 {[%clk 0:01:34]}  Qa5 {[%clk 0:00:29]} 47. Rdc2 {[%clk 0:01:31]}  Bh7 {[%clk 0:00:28]} 48. Qc3 {[%clk 0:01:25]}  Qd5 {[%clk 0:00:19]} 49. Rd2 {[%clk 0:01:25]}  Qe6 {[%clk 0:00:17]} 50. Nf7+ {[%clk 0:01:13]}  Rxf7 {[%clk 0:00:11]} 51. Rxd8+ {[%clk 0:01:13]}  Bg8 {[%clk 0:00:10]} 52. Rxf7 {[%clk 0:01:11]}  Qxf7 {[%clk 0:00:09]} 53. Qc2 {[%clk 0:01:05]}  Qe6 {[%clk 0:00:07]} 54. f5 {[%clk 0:00:52]}  Qxe5 {[%clk 0:00:06]} 55. Qa2 {[%clk 0:00:51]} 1-0

[Event "January 9 Early 2024"]
[Site "https://www.chess.com"]
[Date "2024.01.11"]
[Round "6"]
[White "Horak, Martin"]
[Black "Plyasunov, Daniil"]
[Result "0-1"]
[Board "157"]
[TimeControl "180+1"]
[WhiteFideId "367095"]
[BlackFideId "44133839"]
[WhiteElo "2523"]
[BlackElo "2743"]
[WhiteTeam "CZE"]
[BlackTeam "RUS"]
[WhiteClock "0:00:04"]
[BlackClock "0:00:32"]

1. e4 {[%clk 0:03:00]}  c6 {[%clk 0:02:59]} 2. Nf3 {[%clk 0:03:00]}  d5 {[%clk 0:03:00]} 3. Nc3 {[%clk 0:03:01]}  dxe4 {[%clk 0:03:00]} 4. Nxe4 {[%clk 0:03:01]}  Nf6 {[%clk 0:03:01]} 5. Qe2 {[%clk 0:03:02]}  Nxe4 {[%clk 0:03:01]} 6. Qxe4 {[%clk 0:03:03]}  Qd5 {[%clk 0:03:02]} 7. Qf4 {[%clk 0:03:01]}  Qf5 {[%clk 0:03:00]} 8. Qxf5 {[%clk 0:03:01]}  Bxf5 {[%clk 0:03:01]} 9. b3 {[%clk 0:03:01]}  Nd7 {[%clk 0:02:58]} 10. Bb2 {[%clk 0:03:01]}  f6 {[%clk 0:02:58]} 11. O-O-O {[%clk 0:03:00]}  Bg6 {[%clk 0:02:40]} 12. Nd4 {[%clk 0:02:38]}  e5 {[%clk 0:02:16]} 13. Re1 {[%clk 0:02:34]}  O-O-O {[%clk 0:02:14]} 14. Ne6 {[%clk 0:02:31]}  Re8 {[%clk 0:02:14]} 15. Nxf8 {[%clk 0:02:30]}  Rhxf8 {[%clk 0:02:15]} 16. g3 {[%clk 0:02:19]}  Nb6 {[%clk 0:02:10]} 17. Bh3+ {[%clk 0:02:10]}  Kc7 {[%clk 0:02:10]} 18. Rhf1 {[%clk 0:01:45]}  Nd5 {[%clk 0:02:08]} 19. f3 {[%clk 0:01:42]}  Nb4 {[%clk 0:02:02]} 20. Ba3 {[%clk 0:01:40]}  a5 {[%clk 0:01:59]} 21. Bxb4 {[%clk 0:01:39]}  axb4 {[%clk 0:01:59]} 22. Kb2 {[%clk 0:01:29]}  Rd8 {[%clk 0:01:58]} 23. d3 {[%clk 0:01:29]}  Ra8 {[%clk 0:01:54]} 24. f4 {[%clk 0:01:26]}  exf4 {[%clk 0:01:33]} 25. Re7+ {[%clk 0:01:25]}  Kd6 {[%clk 0:01:28]} 26. Rd7+ {[%clk 0:01:20]}  Kc5 {[%clk 0:01:26]} 27. Rxf4 {[%clk 0:01:08]}  Ra7 {[%clk 0:01:24]} 28. Rxg7 {[%clk 0:00:47]}  Rfa8 {[%clk 0:01:22]} 29. a4 {[%clk 0:00:47]}  bxa3+ {[%clk 0:01:22]} 30. Ka2 {[%clk 0:00:47]}  Re8 {[%clk 0:01:11]} 31. Bf1 {[%clk 0:00:20]}  f5 {[%clk 0:00:55]} 32. h4 {[%clk 0:00:19]}  Kd6 {[%clk 0:00:52]} 33. h5 {[%clk 0:00:18]}  Bxh5 {[%clk 0:00:52]} 34. Rxh7 {[%clk 0:00:18]}  Bg4 {[%clk 0:00:53]} 35. Rh6+ {[%clk 0:00:12]}  Kc5 {[%clk 0:00:52]} 36. Rc4+ {[%clk 0:00:11]}  Kb5 {[%clk 0:00:50]} 37. d4 {[%clk 0:00:12]}  Kb6 {[%clk 0:00:48]} 38. Rh7 {[%clk 0:00:08]}  Re1 {[%clk 0:00:31]} 39. Rb4+ {[%clk 0:00:09]}  Ka5 {[%clk 0:00:31]} 40. Ra4+ {[%clk 0:00:09]}  Kb6 {[%clk 0:00:32]} 41. Rb4+ {[%clk 0:00:09]}  Ka5 {[%clk 0:00:32]} 42. Bd3 {[%clk 0:00:04]}  Kxb4 {[%clk 0:00:32]} 0-1

[Event "January 9 Early 2024"]
[Site "https://www.chess.com"]
[Date "2024.01.11"]
[Round "6"]
[White "Szyszylo, Rafal"]
[Black "Tabuenca Mendataurigoitia, Daniel"]
[Result "0-1"]
[Board "160"]
[TimeControl "180+1"]
[WhiteFideId "1109626"]
[BlackFideId "24563617"]
[WhiteElo "2401"]
[BlackElo "2550"]
[WhiteTeam "POL"]
[BlackTeam "ESP"]
[WhiteClock "0:00:07"]
[BlackClock "0:00:08"]

1. e4 {[%clk 0:02:51]}  Nc6 {[%clk 0:02:57]} 2. Bb5 {[%clk 0:02:49]}  e5 {[%clk 0:02:43]} 3. Nf3 {[%clk 0:02:48]}  a6 {[%clk 0:02:38]} 4. Ba4 {[%clk 0:02:46]}  Nf6 {[%clk 0:02:36]} 5. Qe2 {[%clk 0:02:46]}  b5 {[%clk 0:02:34]} 6. Bb3 {[%clk 0:02:46]}  Bc5 {[%clk 0:02:32]} 7. c3 {[%clk 0:02:46]}  O-O {[%clk 0:02:27]} 8. O-O {[%clk 0:02:46]}  Re8 {[%clk 0:02:25]} 9. d3 {[%clk 0:02:46]}  h6 {[%clk 0:02:22]} 10. Be3 {[%clk 0:02:45]}  Bxe3 {[%clk 0:02:18]} 11. fxe3 {[%clk 0:02:44]}  d5 {[%clk 0:02:14]} 12. Nbd2 {[%clk 0:02:44]}  Be6 {[%clk 0:02:10]} 13. h3 {[%clk 0:02:19]}  a5 {[%clk 0:01:58]} 14. Qf2 {[%clk 0:02:04]}  a4 {[%clk 0:01:56]} 15. Bc2 {[%clk 0:02:03]}  dxe4 {[%clk 0:01:54]} 16. dxe4 {[%clk 0:01:45]}  b4 {[%clk 0:01:52]} 17. cxb4 {[%clk 0:01:08]}  Nxb4 {[%clk 0:01:51]} 18. Bb1 {[%clk 0:01:09]}  a3 {[%clk 0:01:47]} 19. bxa3 {[%clk 0:01:06]}  Rxa3 {[%clk 0:01:47]} 20. Nxe5 {[%clk 0:01:06]}  Qd6 {[%clk 0:00:41]} 21. Ndc4 {[%clk 0:01:01]}  Qc5 {[%clk 0:00:31]} 22. Nxa3 {[%clk 0:01:00]}  Qxe5 {[%clk 0:00:31]} 23. Bc2 {[%clk 0:00:55]}  Qa5 {[%clk 0:00:25]} 24. Nb1 {[%clk 0:00:43]}  Qc5 {[%clk 0:00:24]} 25. Bb3 {[%clk 0:00:39]}  Nxe4 {[%clk 0:00:21]} 26. Qe1 {[%clk 0:00:20]}  Bxb3 {[%clk 0:00:18]} 27. axb3 {[%clk 0:00:21]}  Nc2 {[%clk 0:00:18]} 28. Qa5 {[%clk 0:00:14]}  Qxe3+ {[%clk 0:00:17]} 29. Kh1 {[%clk 0:00:13]}  Nxa1 {[%clk 0:00:17]} 30. Qxa1 {[%clk 0:00:13]}  Ng3+ {[%clk 0:00:17]} 31. Kh2 {[%clk 0:00:12]}  Nxf1+ {[%clk 0:00:18]} 32. Kh1 {[%clk 0:00:12]}  Qe1 {[%clk 0:00:17]} 33. Qa4 {[%clk 0:00:10]}  Rd8 {[%clk 0:00:09]} 34. Na3 {[%clk 0:00:09]}  Ne3+ {[%clk 0:00:07]} 35. Kh2 {[%clk 0:00:09]}  Qe2 {[%clk 0:00:07]} 36. Qe4 {[%clk 0:00:07]}  Nf1+ {[%clk 0:00:07]} 37. Kg1 {[%clk 0:00:07]}  Qxe4 {[%clk 0:00:08]} 38. Kxf1 {[%clk 0:00:07]}  Qe3 {[%clk 0:00:08]} 39. Nc2 {[%clk 0:00:06]}  Rd1+ {[%clk 0:00:08]} 40. Ne1 {[%clk 0:00:07]}  Qxe1# {[%clk 0:00:08]} 0-1

[Event "January 9 Early 2024"]
[Site "https://www.chess.com"]
[Date "2024.01.11"]
[Round "6"]
[White "Matta, Nicholas"]
[Black "Weetik, Vjacheslav"]
[Result "1-0"]
[Board "162"]
[TimeControl "180+1"]
[WhiteFideId "30914523"]
[BlackFideId "4153472"]
[WhiteElo "2594"]
[BlackElo "2751"]
[WhiteTeam "USA"]
[BlackTeam "RUS"]
[WhiteClock "0:00:11"]
[BlackClock "0:00:05"]

1. Nf3 {[%clk 0:03:00]}  Nf6 {[%clk 0:02:59]} 2. g3 {[%clk 0:03:01]}  d5 {[%clk 0:02:57]} 3. Bg2 {[%clk 0:03:01]}  Bf5 {[%clk 0:02:57]} 4. O-O {[%clk 0:03:01]}  e6 {[%clk 0:02:57]} 5. d3 {[%clk 0:03:02]}  c6 {[%clk 0:02:56]} 6. c4 {[%clk 0:03:00]}  Nbd7 {[%clk 0:02:52]} 7. Qb3 {[%clk 0:03:00]}  Qb6 {[%clk 0:02:52]} 8. Be3 {[%clk 0:03:01]}  Bc5 {[%clk 0:02:52]} 9. d4 {[%clk 0:02:58]}  Be7 {[%clk 0:02:50]} 10. Nh4 {[%clk 0:02:42]}  Bg4 {[%clk 0:02:45]} 11. Nc3 {[%clk 0:02:39]}  O-O {[%clk 0:02:34]} 12. h3 {[%clk 0:02:39]}  Bh5 {[%clk 0:02:32]} 13. g4 {[%clk 0:02:39]}  Bg6 {[%clk 0:02:23]} 14. Nxg6 {[%clk 0:02:37]}  hxg6 {[%clk 0:02:22]} 15. Qxb6 {[%clk 0:02:31]}  Nxb6 {[%clk 0:02:16]} 16. c5 {[%clk 0:02:25]}  Nc4 {[%clk 0:02:15]} 17. Bf4 {[%clk 0:02:16]}  b6 {[%clk 0:01:57]} 18. b3 {[%clk 0:02:13]}  Na3 {[%clk 0:01:45]} 19. cxb6 {[%clk 0:01:52]}  axb6 {[%clk 0:01:45]} 20. Rac1 {[%clk 0:01:51]}  Rfc8 {[%clk 0:01:15]} 21. Na4 {[%clk 0:01:37]}  Ra6 {[%clk 0:01:10]} 22. Rfd1 {[%clk 0:01:32]}  Nd7 {[%clk 0:01:04]} 23. e4 {[%clk 0:01:25]}  Raa8 {[%clk 0:00:49]} 24. exd5 {[%clk 0:01:16]}  cxd5 {[%clk 0:00:43]} 25. Bf1 {[%clk 0:01:15]}  b5 {[%clk 0:00:28]} 26. Nc3 {[%clk 0:01:06]}  b4 {[%clk 0:00:19]} 27. Na4 {[%clk 0:01:05]}  Nf6 {[%clk 0:00:17]} 28. f3 {[%clk 0:00:53]}  Nh7 {[%clk 0:00:14]} 29. Rxc8+ {[%clk 0:00:41]}  Rxc8 {[%clk 0:00:15]} 30. Rc1 {[%clk 0:00:42]}  Re8 {[%clk 0:00:07]} 31. Rc7 {[%clk 0:00:36]}  Bg5 {[%clk 0:00:08]} 32. Bxg5 {[%clk 0:00:22]}  Nxg5 {[%clk 0:00:08]} 33. Kf2 {[%clk 0:00:23]}  f6 {[%clk 0:00:05]} 34. Rb7 {[%clk 0:00:14]}  Rc8 {[%clk 0:00:05]} 35. Bd3 {[%clk 0:00:13]}  e5 {[%clk 0:00:05]} 36. dxe5 {[%clk 0:00:11]}  fxe5 {[%clk 0:00:05]} 37. Bxg6 {[%clk 0:00:12]}  e4 {[%clk 0:00:05]} 38. fxe4 {[%clk 0:00:12]}  dxe4 {[%clk 0:00:06]} 39. Ke3 {[%clk 0:00:12]}  Rc2 {[%clk 0:00:05]} 40. Rb8+ {[%clk 0:00:11]} 1-0

[Event "January 9 Early 2024"]
[Site "https://www.chess.com"]
[Date "2024.01.11"]
[Round "6"]
[White "Kovalev, Vladislav"]
[Black "Timerkhanov, Alexander"]
[Result "1-0"]
[Board "166"]
[TimeControl "180+1"]
[WhiteFideId "13504398"]
[BlackFideId "24177938"]
[WhiteElo "2912"]
[BlackElo "2666"]
[WhiteTeam "FID"]
[BlackTeam "RUS"]
[WhiteClock "0:00:17"]
[BlackClock "0:00:12"]

1. e4 {[%clk 0:03:00]}  c6 {[%clk 0:02:59]} 2. Nf3 {[%clk 0:03:01]}  d5 {[%clk 0:02:59]} 3. d3 {[%clk 0:03:01]}  g6 {[%clk 0:02:54]} 4. e5 {[%clk 0:02:55]}  Bg7 {[%clk 0:02:54]} 5. h3 {[%clk 0:02:55]}  c5 {[%clk 0:02:51]} 6. Bf4 {[%clk 0:02:48]}  Nc6 {[%clk 0:02:51]} 7. Nbd2 {[%clk 0:02:41]}  e6 {[%clk 0:02:48]} 8. h4 {[%clk 0:02:35]}  h6 {[%clk 0:02:47]} 9. g3 {[%clk 0:02:35]}  Nge7 {[%clk 0:02:47]} 10. Bg2 {[%clk 0:02:35]}  b6 {[%clk 0:02:45]} 11. O-O {[%clk 0:02:33]}  Bb7 {[%clk 0:02:46]} 12. Re1 {[%clk 0:02:33]}  Nf5 {[%clk 0:02:42]} 13. c3 {[%clk 0:02:30]}  O-O {[%clk 0:02:39]} 14. Nf1 {[%clk 0:02:29]}  d4 {[%clk 0:02:34]} 15. c4 {[%clk 0:02:28]}  f6 {[%clk 0:02:34]} 16. exf6 {[%clk 0:02:23]}  Qxf6 {[%clk 0:02:34]} 17. N1h2 {[%clk 0:02:23]}  Rae8 {[%clk 0:02:19]} 18. Ng4 {[%clk 0:02:09]}  Qd8 {[%clk 0:02:19]} 19. Qd2 {[%clk 0:02:04]}  h5 {[%clk 0:02:16]} 20. Nge5 {[%clk 0:01:56]}  Nxe5 {[%clk 0:02:15]} 21. Nxe5 {[%clk 0:01:56]}  Bxg2 {[%clk 0:02:13]} 22. Kxg2 {[%clk 0:01:56]}  Qa8+ {[%clk 0:01:54]} 23. Kg1 {[%clk 0:01:55]}  Bxe5 {[%clk 0:01:47]} 24. Bxe5 {[%clk 0:01:50]}  Qf3 {[%clk 0:01:48]} 25. Qe2 {[%clk 0:01:46]}  Qxe2 {[%clk 0:01:44]} 26. Rxe2 {[%clk 0:01:46]}  Kf7 {[%clk 0:01:43]} 27. a3 {[%clk 0:01:46]}  Rg8 {[%clk 0:01:21]} 28. Bf4 {[%clk 0:01:38]}  Ne7 {[%clk 0:01:04]} 29. b4 {[%clk 0:01:32]}  Nc6 {[%clk 0:00:45]} 30. bxc5 {[%clk 0:01:27]}  bxc5 {[%clk 0:00:46]} 31. Bd6 {[%clk 0:01:27]}  Rd8 {[%clk 0:00:46]} 32. Bxc5 {[%clk 0:01:27]}  Rb8 {[%clk 0:00:47]} 33. Rae1 {[%clk 0:01:12]}  e5 {[%clk 0:00:46]} 34. f4 {[%clk 0:01:06]}  exf4 {[%clk 0:00:39]} 35. Rf1 {[%clk 0:01:05]}  Rb3 {[%clk 0:00:36]} 36. Rxf4+ {[%clk 0:01:05]}  Kg7 {[%clk 0:00:32]} 37. Re6 {[%clk 0:00:54]}  Rc8 {[%clk 0:00:30]} 38. Rff6 {[%clk 0:00:50]}  Nd8 {[%clk 0:00:30]} 39. Rxg6+ {[%clk 0:00:49]}  Kf7 {[%clk 0:00:29]} 40. Rgf6+ {[%clk 0:00:39]}  Kg7 {[%clk 0:00:28]} 41. Bf8+ {[%clk 0:00:35]}  Kg8 {[%clk 0:00:26]} 42. Re8 {[%clk 0:00:16]}  Rbb8 {[%clk 0:00:12]} 43. Bh6+ {[%clk 0:00:16]}  Kh7 {[%clk 0:00:12]} 44. Re7+ {[%clk 0:00:17]} 1-0